[Event "Late-Titled-Tuesday-Blitz-May-14-2024"]
[Site "Chess.com"]
[Date "2024.05.14"]
[Round "3"]
[White "Michalczak"]
[Black "Mischuk_D"]
[Result "0-1"]
[WhiteElo "2499"]
[BlackElo "2697"]
[TimeControl "180+1"]
[EndTime "14:28:29 PDT"]
[Termination "Mischuk_D won by resignation"]

1. e4 {[%clk 0:03:00.9]} 1... e6 {[%clk 0:02:59.7]} 2. d4 {[%clk 0:03:00]} 2...
d5 {[%clk 0:03:00.2]} 3. Nc3 {[%clk 0:03:00.1]} 3... Bb4 {[%clk 0:02:58.1]} 4.
e5 {[%clk 0:03:00.1]} 4... c5 {[%clk 0:02:58.4]} 5. a3 {[%clk 0:03:00.7]} 5...
Bxc3+ {[%clk 0:02:58.6]} 6. bxc3 {[%clk 0:03:01.6]} 6... Nc6 {[%clk 0:02:59.2]}
7. Qg4 {[%clk 0:03:01.2]} 7... g6 {[%clk 0:02:59]} 8. h4 {[%clk 0:02:58.7]} 8...
h6 {[%clk 0:02:59.1]} 9. Nf3 {[%clk 0:02:58.1]} 9... Qa5 {[%clk 0:02:58.6]} 10.
Bd2 {[%clk 0:02:57.5]} 10... Qa4 {[%clk 0:02:58.8]} 11. Ra2 {[%clk 0:02:49.1]}
11... c4 {[%clk 0:02:58.3]} 12. Be2 {[%clk 0:02:40.4]} 12... Bd7 {[%clk
0:02:57.5]} 13. Qf4 {[%clk 0:02:39.2]} 13... Nge7 {[%clk 0:02:54.5]} 14. Qf6
{[%clk 0:02:38.7]} 14... Rh7 {[%clk 0:02:46.7]} 15. Bxh6 {[%clk 0:02:31.2]}
15... Rxh6 {[%clk 0:02:38.8]} 16. Qg7 {[%clk 0:02:31]} 16... Rh5 {[%clk
0:02:23.7]} 17. g4 {[%clk 0:02:30.3]} 17... O-O-O {[%clk 0:02:03.4]} 18. gxh5
{[%clk 0:02:28.7]} 18... Nf5 {[%clk 0:02:03.5]} 19. Qxf7 {[%clk 0:02:26.9]}
19... gxh5 {[%clk 0:02:03.8]} 20. Qxh5 {[%clk 0:02:14.9]} 20... Qa5 {[%clk
0:02:03.6]} 21. Kd2 {[%clk 0:01:57.6]} 21... Ncxd4 {[%clk 0:02:01.1]} 22. Nxd4
{[%clk 0:01:58.5]} 22... Nxd4 {[%clk 0:02:00.9]} 23. Qg4 {[%clk 0:01:49.8]}
23... Nb5 {[%clk 0:02:00]} 24. Rh3 {[%clk 0:01:45.2]} 24... d4 {[%clk
0:01:59.2]} 25. Bxc4 {[%clk 0:01:44.6]} 25... Nxc3 {[%clk 0:01:59.3]} 26. Ra1
{[%clk 0:01:38.3]} 26... Ne4+ {[%clk 0:01:46.1]} 27. Kc1 {[%clk 0:01:38]} 27...
Nxf2 {[%clk 0:01:34.1]} 28. Qg3 {[%clk 0:01:22.5]} 28... Nxh3 {[%clk 0:01:33.7]}
29. Qxh3 {[%clk 0:01:23.4]} 29... Qxe5 {[%clk 0:01:31.8]} 30. Bd3 {[%clk
0:01:18.7]} 30... Rh8 {[%clk 0:01:22.9]} 31. Kb2 {[%clk 0:01:17.9]} 31... Qc5
{[%clk 0:01:18.9]} 32. Rg1 {[%clk 0:01:03.3]} 32... Qc3+ {[%clk 0:01:16.7]} 33.
Ka2 {[%clk 0:01:03.4]} 33... e5 {[%clk 0:01:17.1]} 34. Qg3 {[%clk 0:00:52]}
34... Be6+ {[%clk 0:01:14]} 35. Kb1 {[%clk 0:00:51.4]} 35... Rg8 {[%clk
0:01:12.6]} 36. Qxg8+ {[%clk 0:00:32.4]} 36... Bxg8 {[%clk 0:01:12.7]} 37. Rxg8+
{[%clk 0:00:33.2]} 37... Kc7 {[%clk 0:01:13.3]} 38. h5 {[%clk 0:00:33.6]} 38...
e4 {[%clk 0:01:13.8]} 39. Rg7+ {[%clk 0:00:28.9]} 39... Kd6 {[%clk 0:01:12]} 40.
Rg6+ {[%clk 0:00:24]} 40... Ke5 {[%clk 0:01:12.1]} 41. h6 {[%clk 0:00:09.2]}
41... exd3 {[%clk 0:01:11.6]} 42. cxd3 {[%clk 0:00:10.1]} 42... Qxd3+ {[%clk
0:01:11.4]} 0-1

[Event "Late-Titled-Tuesday-Blitz-May-14-2024"]
[Site "Chess.com"]
[Date "2024.05.14"]
[Round "3"]
[White "PhileKhoob"]
[Black "sergeikim"]
[Result "1-0"]
[WhiteElo "2344"]
[BlackElo "2613"]
[TimeControl "180+1"]
[EndTime "14:28:35 PDT"]
[Termination "PhileKhoob won by resignation"]

1. Nf3 {[%clk 0:03:00.3]} 1... Nf6 {[%clk 0:03:00]} 2. g3 {[%clk 0:03:00.8]}
2... g6 {[%clk 0:03:00.5]} 3. Bg2 {[%clk 0:03:01.5]} 3... Bg7 {[%clk 0:03:00.9]}
4. O-O {[%clk 0:03:02.2]} 4... d6 {[%clk 0:03:01.3]} 5. d4 {[%clk 0:03:03.1]}
5... O-O {[%clk 0:03:01.3]} 6. b3 {[%clk 0:03:03.7]} 6... e5 {[%clk 0:03:00.3]}
7. dxe5 {[%clk 0:03:01.9]} 7... Nfd7 {[%clk 0:03:00.3]} 8. Bb2 {[%clk
0:03:02.1]} 8... dxe5 {[%clk 0:03:00.1]} 9. e4 {[%clk 0:02:59.2]} 9... c6 {[%clk
0:02:58.6]} 10. Qe2 {[%clk 0:02:59.5]} 10... a5 {[%clk 0:02:55.1]} 11. a4 {[%clk
0:02:59.2]} 11... Re8 {[%clk 0:02:54.1]} 12. Nbd2 {[%clk 0:02:59.1]} 12... Nc5
{[%clk 0:02:49]} 13. Nc4 {[%clk 0:02:58.3]} 13... Qc7 {[%clk 0:02:49.2]} 14.
Rfd1 {[%clk 0:02:56.6]} 14... Nba6 {[%clk 0:02:47.9]} 15. Ba3 {[%clk 0:02:54]}
15... Be6 {[%clk 0:02:41.1]} 16. Bf1 {[%clk 0:02:53.2]} 16... Red8 {[%clk
0:02:32.5]} 17. Qe1 {[%clk 0:02:52.1]} 17... b6 {[%clk 0:02:25.9]} 18. Ne3
{[%clk 0:02:40.4]} 18... Nxe4 {[%clk 0:02:19.3]} 19. Nc4 {[%clk 0:02:33.1]}
19... Nec5 {[%clk 0:02:16.3]} 20. Ng5 {[%clk 0:02:30.5]} 20... Bd5 {[%clk
0:02:11.9]} 21. Ne3 {[%clk 0:02:27.2]} 21... h6 {[%clk 0:02:03.7]} 22. c4 {[%clk
0:02:24.3]} 22... Be6 {[%clk 0:01:54.6]} 23. Nxe6 {[%clk 0:02:22.2]} 23... Nxe6
{[%clk 0:01:54.6]} 24. Bb2 {[%clk 0:02:20.7]} 24... Nac5 {[%clk 0:01:51.9]} 25.
Qc3 {[%clk 0:02:20.1]} 25... Nd4 {[%clk 0:01:51.5]} 26. Kh1 {[%clk 0:02:17.5]}
26... Ncxb3 {[%clk 0:01:49.8]} 27. Rab1 {[%clk 0:02:14.4]} 27... Nc5 {[%clk
0:01:49.2]} 28. Bg2 {[%clk 0:02:13.1]} 28... Nxa4 {[%clk 0:01:47.9]} 29. Qa3
{[%clk 0:02:13.1]} 29... Nxb2 {[%clk 0:01:47.4]} 30. Qxb2 {[%clk 0:02:14]} 30...
Rab8 {[%clk 0:01:44.6]} 31. Qa1 {[%clk 0:02:09.1]} 31... Qe7 {[%clk 0:01:34.8]}
32. Qa2 {[%clk 0:02:06.8]} 32... Kh7 {[%clk 0:01:30.1]} 33. h4 {[%clk
0:02:05.4]} 33... f5 {[%clk 0:01:28.2]} 34. h5 {[%clk 0:01:49.1]} 34... Qg5
{[%clk 0:01:27.4]} 35. hxg6+ {[%clk 0:01:48.9]} 35... Qxg6 {[%clk 0:01:27.7]}
36. Re1 {[%clk 0:01:44.9]} 36... f4 {[%clk 0:01:23.9]} 37. Nd1 {[%clk
0:01:25.8]} 37... f3 {[%clk 0:01:22.8]} 38. Bf1 {[%clk 0:01:25.2]} 38... e4
{[%clk 0:01:15.3]} 39. Ne3 {[%clk 0:01:21.1]} 39... Kh8 {[%clk 0:01:09.6]} 40.
c5 {[%clk 0:01:17.8]} 40... b5 {[%clk 0:01:05.4]} 41. Qxa5 {[%clk 0:01:17.7]}
41... Nf5 {[%clk 0:00:59.1]} 42. Rbd1 {[%clk 0:01:05.1]} 42... Nxe3 {[%clk
0:00:53.9]} 43. Rxd8+ {[%clk 0:01:02.6]} 43... Rxd8 {[%clk 0:00:53.1]} 44. Qxd8+
{[%clk 0:01:03.5]} 44... Kh7 {[%clk 0:00:53.4]} 45. Rxe3 {[%clk 0:01:02.5]}
45... Qh5+ {[%clk 0:00:49.1]} 46. Qh4 {[%clk 0:00:55.6]} 46... Qg6 {[%clk
0:00:47.8]} 47. Qxe4 {[%clk 0:00:54.5]} 1-0

[Event "Late-Titled-Tuesday-Blitz-May-14-2024"]
[Site "Chess.com"]
[Date "2024.05.14"]
[Round "3"]
[White "banane_verte"]
[Black "dianamirza"]
[Result "1-0"]
[WhiteElo "2549"]
[BlackElo "1962"]
[TimeControl "180+1"]
[EndTime "14:28:37 PDT"]
[Termination "banane_verte won by resignation"]

1. d4 {[%clk 0:03:00.9]} 1... Nf6 {[%clk 0:02:54.9]} 2. c4 {[%clk 0:02:57.6]}
2... c5 {[%clk 0:02:54.4]} 3. d5 {[%clk 0:02:57.6]} 3... b5 {[%clk 0:02:54.7]}
4. cxb5 {[%clk 0:02:57.9]} 4... a6 {[%clk 0:02:54.6]} 5. bxa6 {[%clk 0:02:55.6]}
5... g6 {[%clk 0:02:54.2]} 6. Nc3 {[%clk 0:02:55.4]} 6... Bxa6 {[%clk
0:02:54.7]} 7. e4 {[%clk 0:02:52.3]} 7... Bxf1 {[%clk 0:02:55.6]} 8. Kxf1 {[%clk
0:02:52.8]} 8... Bg7 {[%clk 0:02:55.6]} 9. g3 {[%clk 0:02:53.2]} 9... d6 {[%clk
0:02:56]} 10. Kg2 {[%clk 0:02:53.4]} 10... O-O {[%clk 0:02:56.3]} 11. Nf3 {[%clk
0:02:54.1]} 11... Nbd7 {[%clk 0:02:54.6]} 12. Nd2 {[%clk 0:02:43.4]} 12... Qa5
{[%clk 0:02:49.4]} 13. Nc4 {[%clk 0:02:41.8]} 13... Qb4 {[%clk 0:02:41.1]} 14.
Qe2 {[%clk 0:02:41.6]} 14... Rfb8 {[%clk 0:02:34.5]} 15. h3 {[%clk 0:02:23.9]}
15... Nb6 {[%clk 0:02:19.4]} 16. Nxb6 {[%clk 0:02:14]} 16... Rxb6 {[%clk
0:02:16.6]} 17. f4 {[%clk 0:02:09.5]} 17... Nd7 {[%clk 0:02:15]} 18. a3 {[%clk
0:02:02.7]} 18... Qb3 {[%clk 0:02:10.8]} 19. Re1 {[%clk 0:01:59.4]} 19... Bxc3
{[%clk 0:02:09.4]} 20. bxc3 {[%clk 0:01:59.5]} 20... Qxc3 {[%clk 0:02:10]} 21.
Bd2 {[%clk 0:01:56.2]} 21... Qb2 {[%clk 0:01:51.6]} 22. a4 {[%clk 0:01:51.3]}
22... c4 {[%clk 0:01:40.3]} 23. Be3 {[%clk 0:01:47.4]} 23... Rb3 {[%clk
0:01:32.9]} 24. a5 {[%clk 0:01:41.3]} 24... Nc5 {[%clk 0:01:02.5]} 25. Bxc5
{[%clk 0:01:38.7]} 25... dxc5 {[%clk 0:01:01.5]} 26. Qxb2 {[%clk 0:01:31]} 26...
Rxb2+ {[%clk 0:01:01.4]} 27. Kf3 {[%clk 0:01:31.8]} 27... c3 {[%clk 0:00:53.1]}
28. a6 {[%clk 0:01:31.8]} 28... c2 {[%clk 0:00:53.3]} 29. a7 {[%clk 0:01:30.3]}
29... Rb7 {[%clk 0:00:52.4]} 30. Rec1 {[%clk 0:01:28.8]} 30... Raxa7 {[%clk
0:00:52]} 31. Rxa7 {[%clk 0:01:29.7]} 31... Rxa7 {[%clk 0:00:52.9]} 32. Rxc2
{[%clk 0:01:30.4]} 32... Ra3+ {[%clk 0:00:51.6]} 33. Kf2 {[%clk 0:01:28.3]}
33... Ra4 {[%clk 0:00:45.6]} 34. e5 {[%clk 0:01:25.5]} 34... c4 {[%clk
0:00:40.5]} 35. Ke3 {[%clk 0:01:25.5]} 35... Ra3+ {[%clk 0:00:35.7]} 36. Ke4
{[%clk 0:01:25.6]} 36... Rxg3 {[%clk 0:00:35.4]} 37. Rxc4 {[%clk 0:01:25.7]}
37... Rxh3 {[%clk 0:00:35.6]} 38. d6 {[%clk 0:01:23.6]} 38... exd6 {[%clk
0:00:35.8]} 39. exd6 {[%clk 0:01:23.2]} 39... f5+ {[%clk 0:00:26.3]} 40. Ke5
{[%clk 0:01:23.4]} 40... Re3+ {[%clk 0:00:26.4]} 41. Kf6 {[%clk 0:01:23.2]}
41... Re8 {[%clk 0:00:10.5]} 42. d7 {[%clk 0:01:21.2]} 42... Rf8+ {[%clk
0:00:09.3]} 43. Ke7 {[%clk 0:01:21.4]} 43... Rf7+ {[%clk 0:00:09.7]} 44. Ke6
{[%clk 0:01:21.5]} 44... Rf8 {[%clk 0:00:09.7]} 45. Rc8 {[%clk 0:01:21.4]} 45...
Kg7 {[%clk 0:00:08.2]} 46. Rxf8 {[%clk 0:01:21.3]} 46... Kxf8 {[%clk 0:00:09.1]}
47. d8=Q+ {[%clk 0:01:22.2]} 47... Kg7 {[%clk 0:00:09.6]} 48. Qe7+ {[%clk
0:01:22.2]} 48... Kh6 {[%clk 0:00:10]} 49. Qg5+ {[%clk 0:01:21.8]} 49... Kg7
{[%clk 0:00:10.4]} 50. Ke7 {[%clk 0:01:21.6]} 50... h6 {[%clk 0:00:10.8]} 51.
Qf6+ {[%clk 0:01:22.1]} 51... Kh7 {[%clk 0:00:11.1]} 52. Kf7 {[%clk 0:01:22.8]}
1-0

[Event "Late-Titled-Tuesday-Blitz-May-14-2024"]
[Site "Chess.com"]
[Date "2024.05.14"]
[Round "3"]
[White "Art10ECHR"]
[Black "munozmiguelangel1982"]
[Result "1-0"]
[WhiteElo "2479"]
[BlackElo "2265"]
[TimeControl "180+1"]
[EndTime "14:28:40 PDT"]
[Termination "Art10ECHR won by checkmate"]

1. d4 {[%clk 0:03:00.9]} 1... Nf6 {[%clk 0:02:59.3]} 2. c4 {[%clk 0:03:01.3]}
2... e6 {[%clk 0:02:59.7]} 3. Nc3 {[%clk 0:03:01.4]} 3... Bb4 {[%clk 0:03:00.1]}
4. a3 {[%clk 0:03:01.1]} 4... Bxc3+ {[%clk 0:02:59.7]} 5. bxc3 {[%clk 0:03:02]}
5... b6 {[%clk 0:02:59.1]} 6. f3 {[%clk 0:03:02.5]} 6... Bb7 {[%clk 0:02:59.3]}
7. e4 {[%clk 0:03:02.8]} 7... d6 {[%clk 0:02:59.6]} 8. Bd3 {[%clk 0:03:03]} 8...
O-O {[%clk 0:02:59.2]} 9. Ne2 {[%clk 0:03:03.4]} 9... e5 {[%clk 0:02:58.9]} 10.
O-O {[%clk 0:03:03.3]} 10... Nbd7 {[%clk 0:02:56.1]} 11. Ng3 {[%clk 0:03:01.8]}
11... Re8 {[%clk 0:02:47.4]} 12. Nf5 {[%clk 0:03:00.2]} 12... g6 {[%clk
0:02:44]} 13. Nh6+ {[%clk 0:02:55.2]} 13... Kg7 {[%clk 0:02:44.1]} 14. f4 {[%clk
0:02:43.7]} 14... exd4 {[%clk 0:02:32.4]} 15. cxd4 {[%clk 0:02:35]} 15... Nxe4
{[%clk 0:02:10.2]} 16. f5 {[%clk 0:02:29.6]} 16... Ndf6 {[%clk 0:01:51]} 17.
fxg6 {[%clk 0:02:24.9]} 17... hxg6 {[%clk 0:01:51.9]} 18. d5 {[%clk 0:02:03.2]}
18... Rh8 {[%clk 0:01:20.5]} 19. Bxe4 {[%clk 0:01:57.3]} 19... Rxh6 {[%clk
0:01:16.4]} 20. Bxh6+ {[%clk 0:01:55.6]} 20... Kxh6 {[%clk 0:01:16.3]} 21. Qd4
{[%clk 0:01:46.2]} 21... Nxe4 {[%clk 0:01:12.7]} 22. Rxf7 {[%clk 0:01:34.6]}
22... Qh4 {[%clk 0:00:54.3]} 23. Raf1 {[%clk 0:01:23.6]} 23... Re8 {[%clk
0:00:40.3]} 24. g3 {[%clk 0:01:04.3]} 24... Qg5 {[%clk 0:00:23.8]} 25. R1f4
{[%clk 0:00:48.8]} 25... Nxg3 {[%clk 0:00:19.5]} 26. Rh4+ {[%clk 0:00:42.2]}
26... Nh5+ {[%clk 0:00:16.3]} 27. Rg4 {[%clk 0:00:37.2]} 27... Qc1+ {[%clk
0:00:12.8]} 28. Rf1 {[%clk 0:00:31.7]} 28... Re1 {[%clk 0:00:09.3]} 29. Qh8#
{[%clk 0:00:28.5]} 1-0

[Event "Late-Titled-Tuesday-Blitz-May-14-2024"]
[Site "Chess.com"]
[Date "2024.05.14"]
[Round "3"]
[White "klifus"]
[Black "CheckBits"]
[Result "0-1"]
[WhiteElo "2131"]
[BlackElo "2399"]
[TimeControl "180+1"]
[EndTime "14:28:45 PDT"]
[Termination "CheckBits won by resignation"]

1. e4 {[%clk 0:01:32.6]} 1... e5 {[%clk 0:02:47.6]} 2. Nf3 {[%clk 0:01:32.4]}
2... Nc6 {[%clk 0:02:47.1]} 3. Bc4 {[%clk 0:01:32.1]} 3... Bc5 {[%clk
0:02:45.1]} 4. d3 {[%clk 0:01:31.5]} 4... d6 {[%clk 0:02:39.8]} 5. O-O {[%clk
0:01:31.2]} 5... Nf6 {[%clk 0:02:39]} 6. c3 {[%clk 0:01:31.1]} 6... Bb6 {[%clk
0:02:37.3]} 7. Nbd2 {[%clk 0:01:28.8]} 7... h6 {[%clk 0:02:36.7]} 8. b4 {[%clk
0:01:27.7]} 8... a6 {[%clk 0:02:34.8]} 9. a4 {[%clk 0:01:27.4]} 9... Ne7 {[%clk
0:02:27.8]} 10. a5 {[%clk 0:01:25]} 10... Ba7 {[%clk 0:02:25.9]} 11. Re1 {[%clk
0:01:24.9]} 11... Ng6 {[%clk 0:02:25.8]} 12. Nf1 {[%clk 0:01:23.2]} 12... O-O
{[%clk 0:02:24.2]} 13. Ne3 {[%clk 0:01:21.3]} 13... Be6 {[%clk 0:02:22.9]} 14.
Qb3 {[%clk 0:01:15]} 14... Bxc4 {[%clk 0:02:18.8]} 15. Qxc4 {[%clk 0:01:14.2]}
15... Re8 {[%clk 0:02:17.3]} 16. Nd5 {[%clk 0:01:12]} 16... c6 {[%clk
0:02:11.9]} 17. Nxf6+ {[%clk 0:01:11]} 17... Qxf6 {[%clk 0:02:11.3]} 18. d4
{[%clk 0:01:09.7]} 18... exd4 {[%clk 0:02:05.5]} 19. cxd4 {[%clk 0:01:08.8]}
19... d5 {[%clk 0:02:02.7]} 20. Qd3 {[%clk 0:01:05]} 20... dxe4 {[%clk
0:01:57.7]} 21. Rxe4 {[%clk 0:01:04.9]} 21... Rxe4 {[%clk 0:01:51.5]} 22. Qxe4
{[%clk 0:01:04.1]} 22... Rd8 {[%clk 0:01:50.5]} 23. Be3 {[%clk 0:01:03.8]} 23...
Qe7 {[%clk 0:01:47.2]} 24. Qxe7 {[%clk 0:01:00.6]} 24... Nxe7 {[%clk 0:01:46.3]}
25. Rb1 {[%clk 0:00:55.5]} 25... Bb8 {[%clk 0:01:41.6]} 26. Kf1 {[%clk
0:00:54.1]} 26... Nd5 {[%clk 0:01:40.3]} 27. Rb3 {[%clk 0:00:51.7]} 27... Bd6
{[%clk 0:01:36.6]} 28. Bd2 {[%clk 0:00:49.5]} 28... Re8 {[%clk 0:01:35.9]} 29.
g3 {[%clk 0:00:46.6]} 29... f5 {[%clk 0:01:33.3]} 30. Ne1 {[%clk 0:00:45.9]}
30... Re4 {[%clk 0:01:27]} 31. Nc2 {[%clk 0:00:43.8]} 31... g5 {[%clk
0:01:24.6]} 32. f3 {[%clk 0:00:43.2]} 32... Re7 {[%clk 0:01:22.3]} 33. Kf2
{[%clk 0:00:41.4]} 33... Kf7 {[%clk 0:01:21.5]} 34. Ne3 {[%clk 0:00:38.7]} 34...
Nxe3 {[%clk 0:01:18.5]} 35. Bxe3 {[%clk 0:00:38.3]} 35... Ke6 {[%clk 0:01:17]}
36. h3 {[%clk 0:00:35.7]} 36... Kd5 {[%clk 0:01:16]} 37. g4 {[%clk 0:00:34.2]}
37... f4 {[%clk 0:01:13.3]} 38. Bc1 {[%clk 0:00:32.3]} 38... Kxd4 {[%clk
0:01:08.2]} 39. Bb2+ {[%clk 0:00:32.1]} 39... Kc4 {[%clk 0:01:06.9]} 40. Rc3+
{[%clk 0:00:29.4]} 40... Kxb4 {[%clk 0:01:05.5]} 41. Rd3 {[%clk 0:00:29]} 41...
Bc5+ {[%clk 0:01:03.4]} 42. Kf1 {[%clk 0:00:29.1]} 42... Kxa5 {[%clk 0:01:01.2]}
43. Bf6 {[%clk 0:00:26.4]} 43... Re6 {[%clk 0:00:57.9]} 44. Bd8+ {[%clk
0:00:25.8]} 44... Ka4 {[%clk 0:00:55.2]} 45. Rd7 {[%clk 0:00:24.7]} 45... b5
{[%clk 0:00:53.1]} 0-1

[Event "Late-Titled-Tuesday-Blitz-May-14-2024"]
[Site "Chess.com"]
[Date "2024.05.14"]
[Round "3"]
[White "el_sporco"]
[Black "katharinareinecke"]
[Result "1-0"]
[WhiteElo "2365"]
[BlackElo "1891"]
[TimeControl "180+1"]
[EndTime "14:28:45 PDT"]
[Termination "el_sporco won by resignation"]

1. e4 {[%clk 0:03:00.9]} 1... c6 {[%clk 0:02:58.2]} 2. d4 {[%clk 0:02:58.8]}
2... d5 {[%clk 0:02:55.3]} 3. Nd2 {[%clk 0:02:58.1]} 3... dxe4 {[%clk
0:02:53.2]} 4. Nxe4 {[%clk 0:02:59]} 4... Bf5 {[%clk 0:02:52.8]} 5. Ng3 {[%clk
0:02:58.8]} 5... Bg6 {[%clk 0:02:53]} 6. h4 {[%clk 0:02:59.7]} 6... h6 {[%clk
0:02:52.6]} 7. Nf3 {[%clk 0:03:00.6]} 7... Nd7 {[%clk 0:02:50.6]} 8. h5 {[%clk
0:03:00.2]} 8... Bh7 {[%clk 0:02:51]} 9. Bd3 {[%clk 0:03:01.1]} 9... Bxd3 {[%clk
0:02:51.3]} 10. Qxd3 {[%clk 0:03:02]} 10... e6 {[%clk 0:02:51.6]} 11. Bd2 {[%clk
0:03:02.4]} 11... Ngf6 {[%clk 0:02:51.7]} 12. O-O-O {[%clk 0:03:02.7]} 12... Be7
{[%clk 0:02:48.6]} 13. Ne4 {[%clk 0:03:02.1]} 13... Nxe4 {[%clk 0:02:48.1]} 14.
Qxe4 {[%clk 0:03:03]} 14... Nf6 {[%clk 0:02:48.4]} 15. Qe2 {[%clk 0:03:03.6]}
15... Qd5 {[%clk 0:02:37.3]} 16. c4 {[%clk 0:03:00.7]} 16... Qe4 {[%clk
0:02:36.8]} 17. Be3 {[%clk 0:03:00.5]} 17... Ng4 {[%clk 0:02:33.8]} 18. Nd2
{[%clk 0:02:55.2]} 18... Qf5 {[%clk 0:02:15]} 19. Rh3 {[%clk 0:02:37.5]} 19...
Nxe3 {[%clk 0:02:09.3]} 20. fxe3 {[%clk 0:02:35]} 20... O-O {[%clk 0:01:49.6]}
21. Rf1 {[%clk 0:02:29]} 21... Qa5 {[%clk 0:01:32]} 22. Kb1 {[%clk 0:02:28.8]}
22... c5 {[%clk 0:01:22]} 23. Nb3 {[%clk 0:02:09]} 23... Qb4 {[%clk 0:01:18.8]}
24. Rg3 {[%clk 0:01:44.3]} 24... f5 {[%clk 0:00:54.6]} 25. Rg6 {[%clk
0:01:11.1]} 25... cxd4 {[%clk 0:00:28.5]} 26. exd4 {[%clk 0:01:04.8]} 26... Qxc4
{[%clk 0:00:14]} 27. Qxc4 {[%clk 0:00:16.8]} 1-0

[Event "Late-Titled-Tuesday-Blitz-May-14-2024"]
[Site "Chess.com"]
[Date "2024.05.14"]
[Round "3"]
[White "Kozok"]
[Black "slidingknight2775"]
[Result "0-1"]
[WhiteElo "2399"]
[BlackElo "2616"]
[TimeControl "180+1"]
[EndTime "14:28:50 PDT"]
[Termination "slidingknight2775 won by checkmate"]

1. e4 {[%clk 0:03:00.9]} 1... c5 {[%clk 0:02:59.8]} 2. Nf3 {[%clk 0:03:00.9]}
2... d6 {[%clk 0:03:00.4]} 3. d4 {[%clk 0:03:00.7]} 3... cxd4 {[%clk 0:03:01.3]}
4. Nxd4 {[%clk 0:03:01.2]} 4... Nf6 {[%clk 0:03:01.9]} 5. Nc3 {[%clk 0:03:01.6]}
5... Nc6 {[%clk 0:02:55.5]} 6. Bg5 {[%clk 0:03:00]} 6... e6 {[%clk 0:02:55.3]}
7. Qd2 {[%clk 0:02:54.9]} 7... a6 {[%clk 0:02:55.2]} 8. O-O-O {[%clk 0:02:54.7]}
8... Bd7 {[%clk 0:02:55.5]} 9. f4 {[%clk 0:02:51]} 9... Be7 {[%clk 0:02:54.1]}
10. Be2 {[%clk 0:02:38.4]} 10... b5 {[%clk 0:02:43.7]} 11. Bf3 {[%clk
0:02:38.7]} 11... Rc8 {[%clk 0:02:27.1]} 12. Nce2 {[%clk 0:02:35.7]} 12... Nxd4
{[%clk 0:02:12.4]} 13. Nxd4 {[%clk 0:02:33]} 13... h6 {[%clk 0:02:11.2]} 14.
Bxf6 {[%clk 0:02:21.1]} 14... Bxf6 {[%clk 0:02:12.1]} 15. Kb1 {[%clk 0:02:08.5]}
15... a5 {[%clk 0:01:44.6]} 16. Be2 {[%clk 0:01:55.8]} 16... Qb6 {[%clk
0:01:12.6]} 17. Nf3 {[%clk 0:01:48.8]} 17... Be7 {[%clk 0:01:05]} 18. g4 {[%clk
0:01:36.8]} 18... Bc6 {[%clk 0:00:55.8]} 19. Bd3 {[%clk 0:01:33.4]} 19... b4
{[%clk 0:00:38]} 20. h4 {[%clk 0:01:28.7]} 20... a4 {[%clk 0:00:37]} 21. h5
{[%clk 0:01:17.5]} 21... a3 {[%clk 0:00:31.2]} 22. b3 {[%clk 0:01:14.5]} 22...
Bf6 {[%clk 0:00:31.7]} 23. g5 {[%clk 0:01:06.7]} 23... Bc3 {[%clk 0:00:31.5]}
24. Qe2 {[%clk 0:00:58.9]} 24... Qc5 {[%clk 0:00:31]} 25. Rhg1 {[%clk
0:00:46.4]} 25... Ke7 {[%clk 0:00:16.7]} 26. Nd2 {[%clk 0:00:19.7]} 26... Bxd2
{[%clk 0:00:12.7]} 27. Qxd2 {[%clk 0:00:18.8]} 27... Qd4 {[%clk 0:00:13]} 28.
Qe2 {[%clk 0:00:12.6]} 28... Qb2# {[%clk 0:00:13]} 0-1

[Event "Late-Titled-Tuesday-Blitz-May-14-2024"]
[Site "Chess.com"]
[Date "2024.05.14"]
[Round "3"]
[White "chessdjw"]
[Black "Hrant_ChessMood"]
[Result "1-0"]
[WhiteElo "2771"]
[BlackElo "2939"]
[TimeControl "180+1"]
[EndTime "14:28:51 PDT"]
[Termination "chessdjw won by resignation"]

1. d4 {[%clk 0:03:00.9]} 1... Nf6 {[%clk 0:02:58.7]} 2. c4 {[%clk 0:03:01.3]}
2... g6 {[%clk 0:02:59.1]} 3. Nc3 {[%clk 0:03:01]} 3... Bg7 {[%clk 0:02:59.8]}
4. e4 {[%clk 0:03:01.4]} 4... d6 {[%clk 0:03:00]} 5. Be2 {[%clk 0:02:59.3]} 5...
O-O {[%clk 0:03:00.2]} 6. Nf3 {[%clk 0:02:59.6]} 6... c5 {[%clk 0:03:00.3]} 7.
O-O {[%clk 0:02:56.5]} 7... Re8 {[%clk 0:03:00.3]} 8. d5 {[%clk 0:02:55.6]} 8...
e6 {[%clk 0:02:59.2]} 9. h3 {[%clk 0:02:55.8]} 9... Na6 {[%clk 0:02:59.2]} 10.
Bf4 {[%clk 0:02:49.5]} 10... exd5 {[%clk 0:02:57.3]} 11. exd5 {[%clk 0:02:49.2]}
11... Ne4 {[%clk 0:02:51.3]} 12. Nxe4 {[%clk 0:02:49.2]} 12... Rxe4 {[%clk
0:02:50.6]} 13. Bg5 {[%clk 0:02:49.8]} 13... Bf6 {[%clk 0:02:50.5]} 14. Bd3
{[%clk 0:02:43.6]} 14... Re8 {[%clk 0:02:46]} 15. Qd2 {[%clk 0:02:41.2]} 15...
Bxg5 {[%clk 0:02:12.4]} 16. Nxg5 {[%clk 0:02:41]} 16... Bd7 {[%clk 0:02:06.9]}
17. Qf4 {[%clk 0:02:35]} 17... f5 {[%clk 0:02:06.9]} 18. Rae1 {[%clk 0:02:12.8]}
18... Qf6 {[%clk 0:01:59.6]} 19. b3 {[%clk 0:01:15.7]} 19... Nc7 {[%clk
0:01:51.1]} 20. Bb1 {[%clk 0:00:58.8]} 20... Rxe1 {[%clk 0:01:45.3]} 21. Rxe1
{[%clk 0:00:59.7]} 21... Re8 {[%clk 0:01:45.7]} 22. Ne4 {[%clk 0:00:52.1]} 22...
Qe5 {[%clk 0:01:37.6]} 23. Qxe5 {[%clk 0:00:47.7]} 23... Rxe5 {[%clk 0:01:24.9]}
24. Nf6+ {[%clk 0:00:47.8]} 24... Kf7 {[%clk 0:01:23.2]} 25. Rxe5 {[%clk
0:00:46.9]} 25... Kxf6 {[%clk 0:01:21.3]} 26. Re1 {[%clk 0:00:47.5]} 26... Kf7
{[%clk 0:01:07.5]} 27. f4 {[%clk 0:00:47.4]} 27... Ne8 {[%clk 0:01:07.7]} 28.
Kf2 {[%clk 0:00:47.6]} 28... Nf6 {[%clk 0:01:07.8]} 29. Kf3 {[%clk 0:00:48.1]}
29... b5 {[%clk 0:01:03.5]} 30. Bd3 {[%clk 0:00:45.2]} 30... b4 {[%clk
0:00:53.7]} 31. a3 {[%clk 0:00:43.4]} 31... a5 {[%clk 0:00:53.8]} 32. axb4
{[%clk 0:00:42.7]} 32... axb4 {[%clk 0:00:54.7]} 33. Ra1 {[%clk 0:00:42.2]}
33... Ke7 {[%clk 0:00:51.5]} 34. Ra8 {[%clk 0:00:40.8]} 34... Kf7 {[%clk
0:00:51.2]} 35. Ke3 {[%clk 0:00:40.5]} 35... Ke7 {[%clk 0:00:50.9]} 36. Rh8
{[%clk 0:00:40.1]} 36... Kf7 {[%clk 0:00:51]} 37. Be2 {[%clk 0:00:40.5]} 37...
Kg7 {[%clk 0:00:50.6]} 38. Rd8 {[%clk 0:00:40.3]} 38... Kf7 {[%clk 0:00:51.5]}
39. Bf3 {[%clk 0:00:40.5]} 39... Ke7 {[%clk 0:00:51.7]} 40. Ra8 {[%clk
0:00:39.8]} 40... Kf7 {[%clk 0:00:51.4]} 41. Ra7 {[%clk 0:00:40]} 41... Ke7
{[%clk 0:00:51.5]} 42. g4 {[%clk 0:00:40]} 42... Kf8 {[%clk 0:00:42.9]} 43. g5
{[%clk 0:00:35.6]} 1-0